bitfinex-derivatives/quotes_ETHF0:USTF0_20210111
["timestamp","ask_amount","ask_price","bid_price","bid_amount"]
[1610379378545,4.0023,1007.1,1004.1,0.7]
[1610379378747,1.998,1007.1,1005.7,4.3]
[1610379378954,1.998,1007.1,1004.1,0.29]
[1610379379548,1.998,1007.1,1004.5,4.00959]
[1610379380844,1.998,1007.1,1004.5,5.99759]
[1610379381245,1.998,1007.1,1004.5,4.00959]
[1610379381445,1.998,1007.1,1004.1,0.29]
[1610379381446,4.00959,1006.5,1006.1,4.00959]
[1610379381645,5.87479,1006.5,1004.7,0.4717]
[1610379382645,5.87479,1006.5,1004.1,0.29]
[1610379383248,7.87019,1006.5,1004.1,0.29]
[1610379383446,4.00959,1005.3,1004.8,4.00959]
[1610379383648,5.87329,1005.3,1004.8,4.00959]
[1610379384246,1.8637,1005.3,1004.8,4.00959]
[1610379384448,1.8637,1005.3,1004.8,5.98099]
[1610379384646,1.6393,1005.3,1004.8,5.98099]
[1610379384847,1.9953,1005.8,1004.8,5.98099]
[1610379385047,1.9768,1006.1,1004.8,4.00959]
[1610379385247,3.9385,1006.4,1004.8,13.00959]
[1610379385448,1.8652,1006.5,1006.3,4.00959]
[1610379385648,1.8652,1006.5,1004.2,1.9822]
[1610379385848,1.8652,1006.5,1004.1,0.29]
[1610379386649,1.9717,1007.0,1004.1,0.29]
[1610379386850,1.998,1007.1,1004.1,0.29]
[1610379387249,1.9851,1007.6,1004.1,0.29]
[1610379387449,4.00959,1005.5,1005.1,4.00959]
[1610379387649,1.7515,1005.5,1005.1,4.00959]
[1610379388852,1.7515,1005.5,1005.1,5.97769]
[1610379389049,1.7515,1005.5,1005.1,4.00959]
[1610379389451,1.7515,1005.5,1005.4,4.00959]
[1610379389452,3.7426,1005.5,1005.4,4.00959]
[1610379389850,2.0043,1007.6,1005.4,4.00959]
[1610379390052,1.9989,1007.6,1005.4,4.00959]
[1610379390251,1.10825,1009.6,1005.4,13.00959]
[1610379390451,1.9875,1008.2,1005.4,4.00959]
[1610379390852,1.9875,1008.2,1005.4,6.00169]
[1610379391252,1.9875,1008.2,1005.4,72.92249]
[1610379391452,4.00959,1007.6,1007.0,4.00959]
[1610379391652,8.09809,1007.6,1005.4,68.9129]
[1610379392553,8.09809,1007.6,1005.4,66.9208]
[1610379393454,4.00959,1005.5,1005.4,66.9208]
[1610379393653,5.87159,1005.5,1004.5,79.5895]
[1610379393855,5.87159,1005.5,1000.9,232.1781]
[1610379393856,5.87159,1005.5,1002.5,0.30741637]
[1610379394253,5.87159,1005.5,1002.2,0.30840111]
[1610379394454,5.87159,1005.5,1001.9,0.3076109]
[1610379394857,5.87159,1005.5,1001.5,0.30763411]
[1610379395354,5.87159,1005.5,1001.2,0.3077069]
[1610379395557,5.87159,1005.5,1002.1,4.00959]
[1610379395558,4.00959,1002.7,1002.1,4.00959]
[1610379395755,5.94489,1002.7,1000.9,0.30784525]
[1610379395956,5.94489,1002.7,1000.8,0.30791905]
[1610379396156,5.94489,1002.7,1000.5,0.30802184]
[1610379396556,5.94489,1002.7,1000.3,0.30807183]
[1610379396957,5.94489,1002.7,1000.1,0.30815291]
[1610379397158,1.9353,1002.7,1000.1,0.30815291]
[1610379397356,1.9353,1002.7,1000.0,9.0]
[1610379397556,1.9353,1002.7,1002.6,4.00959]
[1610379397956,1.9353,1002.7,1000.7,1.6568]
[1610379398356,1.9353,1002.7,1000.7,10.6568]
[1610379399157,1.9353,1002.7,1000.7,40.6568]
[1610379399558,1.9353,1002.7,1002.6,4.00959]
[1610379399959,4.00959,1003.5,1002.6,4.00959]
[1610379400159,58.1871,1004.0,1002.6,13.00959]
[1610379400360,58.1871,1004.0,1002.6,43.00959]
[1610379400560,58.1871,1004.0,1002.7,5.0]
[1610379400760,70.6723,1005.0,1002.7,6.861]
[1610379400960,70.6723,1005.0,1002.7,15.861]
[1610379401562,70.6723,1005.0,1002.7,6.861]
[1610379403567,4.00959,1003.8,1002.7,6.861]
[1610379403767,5.98819,1003.8,1002.7,6.861]
[1610379403968,5.98819,1003.8,1002.7,5.0]
[1610379405670,1.9786,1003.8,1003.4,4.00959]
[1610379407475,1.9786,1003.8,1002.7,5.0]
[1610379407672,1.9786,1003.8,1003.1,4.00959]
[1610379408078,1.9786,1003.8,1002.7,5.0]
[1610379408872,1.8116,1003.8,1002.7,5.0]
[1610379409474,1.8116,1003.8,1002.1,74.7205]
[1610379409678,4.00959,1002.4,1002.1,74.7205]
[1610379410077,6.15949,1002.4,1000.1,0.3080554]
[1610379410477,6.15949,1002.4,1000.3,9.0]
[1610379410677,6.15949,1002.4,1000.3,11.276]
[1610379410876,6.15949,1002.4,1000.3,2.276]
[1610379411477,6.15949,1002.4,999.62,0.30815461]
[1610379411677,4.00959,1000.6,1000.2,4.00959]
[1610379411877,1.85,1000.6,1000.2,4.00959]
[1610379412078,2.1499,1002.4,1000.2,4.00959]
[1610379412277,2.36,1000.6,1000.2,34.00959]
[1610379412477,2.3202,1000.6,1000.2,4.00959]
[1610379412679,2.1499,1002.4,1000.2,4.00959]
[1610379413078,2.1499,1002.4,1000.2,14.69479]
[1610379413478,2.1499,1002.4,1000.3,30.0]
[1610379413677,1.8116,1003.8,1002.3,4.00959]
[1610379413881,1.9993,1005.6,1002.4,30.0]
[1610379414277,2.0087,1006.4,1002.4,39.0]
[1610379414478,0.19349,1009.1,1002.4,41.2716]
[1610379414678,1.9521,1010.4,1002.4,41.2716]
[1610379414877,12.1681,1010.4,1002.4,41.2716]
[1610379415079,51.1681,1010.4,1002.4,41.2716]
[1610379415678,4.00959,1005.6,1005.0,4.00959]
[1610379415885,4.00959,1005.6,1002.4,41.2716]
[1610379415886,5.55449,1005.6,1002.4,41.2716]
[1610379416478,5.55449,1005.6,1002.4,11.2716]
[1610379416679,5.55449,1005.6,1002.4,9.0]
[1610379416877,5.55449,1005.6,1002.4,11.0187]
[1610379417077,5.55449,1005.6,1002.4,9.0]
[1610379417278,5.55449,1005.6,1002.5,30.0]
[1610379417678,4.00959,1005.2,1004.7,4.00959]
[1610379417881,1.8829,1005.2,1002.5,39.0]
[1610379419080,1.8829,1005.2,1002.5,41.0223]
[1610379419482,1.8829,1005.2,1003.0,81.4627]
[1610379419682,5.89249,1005.2,1004.7,4.00959]
[1610379419982,5.89249,1005.2,1003.0,81.4627]
[1610379420583,7.86349,1005.2,1003.0,81.4627]
[1610379420782,1.02992,1004.9,1001.9,74.6682]
[1610379420984,1.516,1004.9,1001.5,1.4928]
[1610379421183,1.516,1004.9,1000.4,0.30809094]
[1610379421383,1.516,1004.9,1000.2,0.30810737]
[1610379421583,4.00959,1001.7,1001.3,4.00959]
[1610379421783,1.8421,1001.7,1001.3,4.00959]
[1610379422384,1.516,1004.9,1001.3,43.00959]
[1610379422585,1.516,1004.9,1001.3,45.41459]
[1610379423588,4.00959,1003.8,1003.6,4.00959]
[1610379423787,6.31789,1003.8,1001.3,41.405]
[1610379424186,2.3083,1003.8,1001.3,41.405]
[1610379425388,2.3083,1003.8,1001.3,11.405]
[1610379425589,4.00959,1003.5,1002.5,4.00959]
[1610379425988,5.63379,1003.5,1002.5,4.00959]
[1610379427089,1.6242,1003.5,1002.5,4.00959]
[1610379427488,1.6242,1003.5,1002.6,30.0]
[1610379427688,1.6242,1003.5,1003.4,4.00959]
[1610379428488,1.6242,1003.5,1001.7,30.0]
[1610379428889,1.6242,1003.5,1002.4,9.0]
[1610379429089,1.6242,1003.5,1001.6,11.2636]
[1610379429289,1.6242,1003.5,1001.7,9.0]
[1610379429488,1.6242,1003.5,1001.8,30.0]
[1610379429688,1.6242,1003.5,1003.2,4.00959]
[1610379430493,1.6242,1003.5,1003.2,13.00959]
[1610379430699,2.3083,1003.8,1003.2,43.00959]
[1610379430895,83.8309,1004.8,1003.2,13.00959]
[1610379431494,83.8309,1004.8,1003.3,30.0]
[1610379431694,83.8309,1004.8,1004.5,4.00959]
[1610379431893,83.8309,1004.8,1003.2,9.0]
[1610379432095,83.8309,1004.8,1003.3,9.0]
[1610379432494,83.8309,1004.8,1003.4,30.0]
[1610379432896,83.8309,1004.8,1003.4,39.0]
[1610379433101,83.8309,1004.8,1003.5,30.0]
[1610379433299,1.516,1004.9,1003.5,30.0]
[1610379433498,1.8829,1005.2,1003.5,41.0027]
[1610379433697,4.00959,1006.7,1005.1,4.00959]
[1610379434298,4.00959,1006.7,1003.9,11.1505]
[1610379434495,5.80799,1006.7,1004.1,9.0]
[1610379435097,5.80799,1006.7,1004.2,30.0]
[1610379435297,1.7984,1006.7,1004.2,30.0]
[1610379435499,1.7984,1006.7,1004.2,39.0]
[1610379435698,4.00959,1006.0,1005.2,4.00959]
[1610379435900,5.94339,1006.0,1005.2,4.00959]
[1610379436298,5.94339,1006.0,1004.4,9.0]
[1610379436498,5.94339,1006.0,1003.9,2.1505]
[1610379437198,5.94339,1006.0,1003.9,32.1505]
[1610379437499,5.94339,1006.0,1003.9,2.1505]
[1610379437699,4.00959,1005.6,1004.9,4.00959]
[1610379437898,5.71209,1005.6,1003.5,11.0027]
[1610379438098,5.71209,1005.6,1003.6,30.0]
[1610379438299,5.71209,1005.6,1003.9,9.0]
[1610379439000,1.7025,1005.6,1003.9,9.0]
[1610379439199,1.7025,1005.6,1004.0,30.0]
[1610379439402,1.7025,1005.6,1003.9,9.0]
[1610379439600,1.7025,1005.6,1004.0,9.0]
[1610379439801,1.7025,1005.6,1005.5,4.00959]
[1610379440001,1.7025,1005.6,1004.0,9.0]
[1610379440204,1.7025,1005.6,1004.1,30.0]
[1610379440504,1.9338,1006.0,1005.6,3.2975]
[1610379441105,1.7984,1006.7,1005.6,3.2975]
[1610379441305,81.2619,1007.0,1005.6,3.2975]
[1610379441504,81.2619,1007.0,1004.1,39.0]
[1610379441705,4.00959,1006.1,1005.9,4.00959]
[1610379441904,5.76839,1006.1,1004.1,39.0]
[1610379442104,7.74059,1006.1,1004.1,41.0009]
[1610379442304,5.76839,1006.1,1004.1,41.0009]
[1610379442505,1.7588,1006.1,1004.1,41.0009]
[1610379443706,1.7588,1006.1,1005.9,4.00959]
[1610379445405,1.7588,1006.1,1006.0,30.0]
[1610379445606,6.811,1010.3,1006.0,30.0]
[1610379445806,1.5217,1007.0,1006.9,4.00959]
[1610379446006,1.5217,1007.0,1006.9,30.0]
[1610379446208,0.1337,1007.0,1006.9,39.0]
[1610379446406,1.9644,1008.6,1006.9,39.0]
[1610379447007,1.9644,1008.6,1006.9,40.9631]
[1610379447207,1.9644,1008.6,1006.9,30.9058]
[1610379447409,1.9644,1008.6,1006.4,10.9756]
[1610379447609,3.882,1008.6,1006.4,57.7863]
[1610379447807,4.00959,1007.6,1007.0,4.00959]
[1610379448009,8.33099,1007.6,1006.4,57.7863]
[1610379448811,8.28099,1007.6,1006.4,59.8009]
[1610379449011,8.28099,1007.6,1006.4,89.8009]
[1610379449210,8.28099,1007.6,1006.4,98.8009]
[1610379449411,2.3286,1007.6,1006.4,98.8009]
[1610379449811,0.7333,1007.6,1007.5,4.00959]
[1610379450011,4.00959,1008.1,1007.6,3.75]
[1610379450212,4.00959,1008.1,1006.4,98.8009]
[1610379450411,6.34399,1008.1,1006.4,98.8009]
[1610379450612,6.34399,1008.1,1007.0,9.0]
[1610379450811,6.34399,1008.1,1007.1,30.0]
[1610379451011,8.33819,1008.1,1007.1,30.0]
[1610379451211,8.33819,1008.1,1007.1,39.0]
[1610379451613,8.33819,1008.1,1007.1,9.0]
[1610379451811,8.33819,1008.1,1006.5,30.0]
[1610379452013,8.33819,1008.1,1007.0,9.0]
[1610379452211,8.33819,1008.1,1007.0,39.0]
[1610379452412,8.33819,1008.1,1007.1,9.0]
[1610379452612,8.33819,1008.1,1007.2,30.0]
[1610379453012,8.33819,1008.1,1007.2,39.0]
[1610379453212,8.33819,1008.1,1007.2,9.0]
[1610379453412,6.34399,1008.1,1007.2,9.0]
[1610379453632,6.34399,1008.1,1006.4,57.7863]
[1610379453817,4.00959,1007.0,1006.4,57.7863]
[1610379454017,7.61789,1007.0,1006.4,57.7863]
[1610379454224,5.65989,1007.0,1006.4,57.7863]
[1610379454623,5.65989,1007.0,1006.4,59.7685]
[1610379455015,1.6503,1007.0,1006.5,30.0]
[1610379455215,1.6503,1007.0,1006.4,57.7863]
[1610379455418,1.6503,1007.0,1006.4,66.7863]
[1610379455616,1.6503,1007.0,1006.4,57.7863]
[1610379455818,4.00959,1006.7,1006.4,57.7863]
[1610379456020,5.62589,1006.7,1006.4,57.7863]
[1610379456218,1.6163,1006.7,1006.4,57.7863]
[1610379456418,1.9703,1006.7,1006.4,57.7863]
[1610379456619,1.9703,1006.7,1006.4,66.7863]
[1610379457020,2.288,1006.7,1006.5,30.0]
[1610379457422,2.288,1006.7,1006.5,39.0]
[1610379457621,2.3344,1008.1,1006.6,30.0]
[1610379457820,5.92719,1008.6,1006.6,30.0]
[1610379458021,5.92719,1008.6,1006.6,39.0]
[1610379458621,5.92719,1008.6,1006.7,30.0]
[1610379459123,5.92719,1008.6,1006.7,39.0]
[1610379460121,5.92719,1008.6,1006.7,9.0]
[1610379461524,5.92719,1008.6,1006.3,59.992]
[1610379461825,4.00959,1006.8,1006.3,59.992]
[1610379462023,6.09699,1006.8,1006.3,68.992]
[1610379462224,1.09699,1006.8,1006.3,68.992]
[1610379463325,1.09699,1006.8,1006.3,59.992]
[1610379463725,4.00959,1006.4,1006.3,59.992]
[1610379463926,5.88769,1006.4,1006.3,59.992]
[1610379464527,1.09699,1006.8,1006.3,98.992]
[1610379465829,1.09699,1006.8,1006.7,4.00959]
[1610379466029,1.09699,1006.8,1006.3,59.992]
[1610379466429,1.09699,1006.8,1006.2,61.7202]
[1610379467130,4.00959,1007.6,1006.2,61.7202]
[1610379467330,4.00959,1007.6,1006.2,91.7202]
[1610379467729,4.00959,1007.6,1007.0,4.00959]
[1610379467930,65.8097,1008.4,1007.0,4.00959]
[1610379468333,65.8097,1008.4,1006.2,70.7202]
[1610379468531,65.8097,1008.4,1006.2,61.7202]
[1610379469232,65.8097,1008.4,1006.2,70.7202]
[1610379470233,65.8097,1008.4,1006.2,60.7569]
[1610379470234,73.1172,1007.7,1006.2,60.7569]
[1610379470434,75.1136,1007.7,1006.2,60.7569]
[1610379470634,77.509,1007.7,1006.2,51.7569]
[1610379471735,4.00959,1006.3,1006.2,51.7569]
[1610379472137,5.86999,1006.3,1006.2,51.7569]
[1610379473836,5.86999,1006.3,1005.8,1.9781]
[1610379474037,5.86999,1006.3,1005.6,4.00959]
[1610379474237,5.86999,1006.3,1005.1,63.3195]
[1610379475339,5.86999,1006.3,1004.2,80.8738]
[1610379475540,5.86999,1006.3,1004.3,30.0]
[1610379475739,1.8604,1006.3,1005.9,4.00959]
[1610379475940,1.8604,1006.3,1004.3,30.0]
[1610379476239,1.8604,1006.3,1004.3,39.0]
[1610379476439,1.8604,1006.3,1004.3,40.9647]
[1610379477142,1.6054,1006.3,1004.3,40.9647]
[1610379477340,61.0482,1006.9,1004.3,40.9647]
[1610379477542,1.8461,1006.3,1004.3,40.9647]
[1610379477741,1.5003,1006.3,1004.9,72.2076]
[1610379477940,1.9718,1009.2,1006.2,4.00959]
[1610379478141,1.9718,1009.2,1006.3,30.0]
[1610379478541,1.9718,1009.2,1006.3,39.0]
[1610379479342,30.0,1012.7,1009.2,3.0282]
[1610379479548,5.3681,1010.7,1006.3,39.0]
[1610379479742,6.9924,1010.7,1008.8,4.00959]
[1610379480343,3.5874,1010.7,1006.3,39.0]
[1610379481041,3.5874,1010.7,1006.3,40.9848]
[1610379481743,4.00959,1009.8,1009.5,4.00959]
[1610379481944,5.74409,1009.8,1006.3,39.0]
[1610379482743,5.74409,1009.8,1006.7,66.6758]
[1610379482944,5.74409,1009.8,1006.7,100.6209]
[1610379483143,5.74409,1009.8,1006.7,79.6209]
[1610379483344,5.74409,1009.8,1006.7,109.6209]
[1610379483943,4.00959,1008.5,1007.9,4.00959]
[1610379484145,6.41019,1008.5,1007.9,4.00959]
[1610379484543,2.4006,1008.5,1007.9,4.00959]
[1610379484748,2.1373,1008.5,1007.9,4.00959]
[1610379487244,2.1373,1008.5,1007.9,5.96769]
[1610379487447,2.1373,1008.5,1007.9,4.00959]
[1610379487645,1.7396,1008.5,1007.9,13.00959]
[1610379487845,4.00959,1009.3,1008.4,4.00959]
[1610379488045,1.7601,1008.5,1008.4,4.00959]
[1610379488245,1.7601,1008.5,1008.4,9.0]
[1610379488445,0.5901,1008.5,1008.4,9.0]
[1610379488645,1.7345,1009.8,1008.4,39.0]
[1610379488845,1.6243,1010.7,1008.4,39.0]
[1610379489045,3.405,1012.4,1008.4,39.0]
[1610379489245,74.3432,1011.2,1008.5,5.0]
[1610379489447,74.3432,1011.2,1008.6,30.0]
[1610379489845,4.00959,1010.5,1010.4,4.00959]
[1610379490048,5.74919,1010.5,1008.6,39.0]
[1610379490245,1.7396,1010.5,1008.6,39.0]
[1610379490645,74.3432,1011.2,1008.6,39.0]
[1610379491247,12.4841,1013.3,1008.6,39.0]
[1610379491648,10.216,1016.3,1008.7,6.2343]
[1610379491848,10.216,1016.3,1011.6,4.00959]
[1610379491849,4.00959,1011.8,1011.6,4.00959]
[1610379492052,2.2901,1011.8,1011.2,1.9715]
[1610379492251,1.9839,1014.5,1011.6,9.0]
[1610379492449,2.4013,1011.8,1011.6,9.0]
[1610379492849,12.1584,1016.2,1010.9,1.9941]
[1610379493048,12.1584,1016.2,1011.6,9.0]
[1610379493248,12.1584,1016.2,1011.6,10.9649]
[1610379493848,12.1584,1016.2,1012.5,4.00959]
[1610379494049,12.1584,1016.2,1011.6,10.9649]
[1610379494249,14.3551,1016.2,1011.6,10.9649]
[1610379495263,14.3551,1016.2,1011.6,40.9649]
[1610379495453,14.3551,1016.2,1011.6,10.9649]
[1610379495654,14.3551,1016.2,1011.7,30.0]
[1610379495866,4.00959,1013.5,1013.3,4.00959]
[1610379496066,14.3551,1016.2,1011.7,30.0]
[1610379496067,14.3551,1016.2,1012.4,3.9598]
[1610379496273,14.3551,1016.2,1013.3,9.0]
[1610379496865,14.3551,1016.2,1012.4,3.9598]
[1610379497069,14.3551,1016.2,1013.2,9.0]
[1610379497263,14.3551,1016.2,1013.2,10.9484]
[1610379497467,14.3551,1016.2,1013.3,9.0]
[1610379497663,14.3551,1016.2,1013.3,10.9673]
[1610379497863,4.00959,1013.9,1013.6,4.00959]
[1610379498157,1.86479,1013.9,1013.6,4.00959]
[1610379498757,14.3551,1016.2,1013.6,4.00959]
[1610379499157,14.3551,1016.2,1013.6,13.00959]
[1610379499357,7.9732,1016.2,1013.6,13.00959]
[1610379499558,2.1967,1016.2,1013.6,13.00959]
[1610379499758,55.693,1016.4,1013.6,13.00959]
[1610379499957,55.693,1016.4,1014.9,4.00959]
[1610379500158,55.693,1016.4,1013.6,10.9774]
[1610379500357,57.2585,1016.4,1013.6,10.9774]
[1610379501558,57.2585,1016.4,1013.7,30.0]
[1610379501959,57.2585,1016.4,1015.3,4.00959]
[1610379502160,57.2585,1016.4,1014.5,1.9485]
[1610379502763,57.2585,1016.4,1014.5,10.9485]
[1610379504162,1.5655,1016.4,1015.1,73.8413]
[1610379504362,1.5655,1016.4,1015.1,75.8382]
[1610379504565,1.5655,1016.4,1015.1,67.3909]
[1610379505463,3.9407,1016.9,1015.1,67.3909]
[1610379505665,1.9673,1016.9,1015.1,67.3909]
[1610379505862,1.9673,1016.9,1015.1,65.394]
[1610379506063,4.00959,1015.6,1014.2,3.9436]
[1610379506264,5.54599,1015.6,1014.2,3.9436]
[1610379506664,5.54599,1015.6,1013.4,9.0]
[1610379506866,5.54599,1015.6,1012.7,6.0097]
[1610379507869,5.54599,1015.6,1013.3,9.0]
[1610379508066,1.5364,1015.6,1014.3,73.7464]
[1610379508268,1.5364,1015.6,1013.3,57.5222]
[1610379510071,4.00959,1013.4,1013.3,57.5222]
[1610379510272,6.27639,1013.4,1012.0,76.8237]
[1610379511271,6.27639,1013.4,1011.0,79.3488]
[1610379511671,8.27269,1013.4,1011.0,79.3488]
[1610379512071,4.00959,1011.1,1011.0,79.3488]
[1610379512271,5.85909,1011.1,1011.0,79.3488]
[1610379513072,5.85909,1011.1,1011.0,57.5524]
[1610379513273,7.83349,1011.1,1009.8,68.9826]
[1610379513477,7.83349,1011.1,1009.8,70.9763]
[1610379514073,4.00959,1009.9,1009.8,70.9763]
[1610379514274,2.1725,1010.3,1009.8,70.9763]
[1610379514875,0.7469,1010.3,1009.8,70.9763]
[1610379515083,2.3546,1011.1,1009.8,79.9763]
[1610379515276,1.9509,1011.7,1009.8,12.7465]
[1610379515481,4.2545,1013.4,1009.9,30.0]
[1610379515880,4.2545,1013.4,1009.9,39.0]
[1610379516081,4.017,1013.4,1012.7,4.00959]
[1610379516279,2.272,1013.4,1012.4,3.9406]
[1610379516479,2.6292,1013.4,1012.4,3.9406]
[1610379516679,1.8013,1013.4,1012.4,3.9406]
[1610379517279,1.606,1013.4,1012.4,12.9406]
[1610379517681,2.0,1015.9,1012.4,12.9406]
[1610379517881,0.4985,1013.4,1012.4,14.9795]
[1610379518082,0.98352,1016.8,1013.3,4.00959]
[1610379518083,2.2303,1016.3,1013.3,4.00959]
[1610379518282,1.6526,1015.1,1013.3,5.65799]
[1610379518482,3.5981,1015.1,1013.3,5.65799]
[1610379518883,3.5981,1015.1,1013.3,1.6484]
[1610379519285,3.5981,1015.1,1012.7,1.9614]
[1610379519485,5.5805,1015.1,1012.7,1.9614]
[1610379519685,5.5805,1015.1,1012.4,3.9406]
[1610379519885,5.5805,1015.1,1012.4,3.3698]
[1610379520086,4.00959,1012.5,1012.4,3.3698]
[1610379520286,5.51479,1012.5,1012.4,1.4136]
[1610379520487,5.51479,1012.5,1011.8,1.9856]
[1610379521388,5.51479,1012.5,1010.4,1.9495]
[1610379521591,7.48749,1012.5,1010.0,0.30497948]
[1610379521797,7.48749,1012.5,1009.7,0.30506525]
[1610379521987,4.00959,1010.2,1010.1,4.00959]
[1610379522195,4.00959,1010.2,1009.8,0.30495]
[1610379522390,4.00959,1010.2,1009.8,5e-05]
[1610379522588,5.77989,1010.2,1009.7,5.001e-05]
[1610379522789,5.77989,1010.2,1009.4,1.9787]
[1610379523189,7.75909,1010.2,1009.4,1.9787]
[1610379523790,2.8659,1010.2,1009.4,1.9787]
[1610379523990,2.8659,1010.2,1009.4,4.00959]
[1610379524190,1.9872,1010.2,1009.4,4.00959]
[1610379524593,1.9872,1010.2,1007.7,1.52814701]
[1610379524789,1.9872,1010.2,1008.4,9.0]
[1610379524990,1.9872,1010.2,1008.4,13.1691]
[1610379525189,1.9872,1010.2,1008.4,4.1691]
[1610379525792,1.9356,1010.2,1008.4,4.1691]
[1610379526192,4.00959,1009.4,1008.7,4.00959]
[1610379526794,2.09079,1009.4,1008.7,4.00959]
[1610379526996,3.9447,1010.2,1008.7,4.00959]
[1610379527193,1.4559,1010.2,1008.7,6.44149]
[1610379527393,0.2112,1010.5,1008.7,17.43879]
[1610379527594,1.9599,1012.8,1008.7,17.43879]
[1610379527995,1.9599,1012.8,1008.8,30.0]
[1610379528195,4.00959,1011.3,1010.5,4.00959]
[1610379528394,4.00959,1011.3,1010.2,0.5]
[1610379528395,1.9578,1011.5,1010.2,0.5]
[1610379528595,3.5593,1011.8,1010.2,2.4826]
[1610379528795,1.609,1011.8,1010.2,2.4826]
[1610379529399,1.609,1011.8,1010.2,2.3133]
[1610379529796,3.6138,1011.8,1010.2,1.5849]
[1610379530196,4.00959,1010.3,1010.2,1.5849]
[1610379530396,4.00959,1010.3,1009.8,2.475]
[1610379530996,1.8492,1010.4,1008.9,30.0]
[1610379531197,1.609,1011.8,1009.8,9.0]
[1610379531397,1.9741,1014.0,1009.8,40.509]
[1610379531997,3.08534,1015.6,1009.8,40.509]
[1610379532199,173.3776,1013.8,1012.2,4.00959]
[1610379532401,175.5954,1013.8,1012.2,4.00959]
[1610379533202,175.5954,1013.8,1012.2,34.00959]
[1610379533400,175.5954,1013.8,1012.2,13.00959]
[1610379534202,4.00959,1013.7,1012.2,9.0]
[1610379534401,4.00959,1013.7,1011.2,2.0052]
[1610379534601,4.00959,1013.7,1010.6,1.986]
[1610379534802,4.00959,1013.7,1010.3,9.30489492]
[1610379535202,4.00959,1013.7,1010.1,79.8214]
[1610379535601,4.00959,1013.7,1009.9,0.30505337]
[1610379535802,4.00959,1013.7,1009.8,1.509]
[1610379536112,2.2178,1013.8,1009.8,1.509]
[1610379536113,4.00959,1010.9,1010.3,4.00959]
[1610379536302,2.4063,1012.6,1010.3,4.00959]
[1610379536511,2.4063,1012.6,1010.3,14.86769]
[1610379536724,2.4063,1012.6,1010.3,44.86769]
[1610379536903,2.4063,1012.6,1010.3,46.84559]
[1610379536904,1.9867,1012.6,1010.3,46.84559]
[1610379537117,1.6279,1012.6,1010.3,46.84559]
[1610379537302,2.2178,1013.8,1010.3,46.84559]
[1610379537504,237.3452,1014.3,1010.3,46.84559]
[1610379538102,237.3452,1014.3,1010.3,42.836]
[1610379538303,237.3452,1014.3,1010.3,43.1409612]
[1610379538504,237.3452,1014.3,1010.4,0.30493999]
[1610379539306,237.3452,1014.3,1010.3,40.8581]
[1610379539505,239.3432,1014.3,1010.3,40.8581]
[1610379539704,239.3432,1014.3,1010.3,42.8584]
[1610379540106,4.00959,1012.8,1012.6,4.00959]
[1610379540306,2.254,1013.7,1012.6,4.00959]
[1610379540506,2.254,1013.7,1012.6,14.86959]
[1610379540706,239.3432,1014.3,1012.6,14.86959]
[1610379541106,239.3432,1014.3,1012.6,5.86959]
[1610379541307,239.3432,1014.3,1012.6,1.86]
[1610379541506,239.3432,1014.3,1010.9,1.9766]
[1610379541708,1.998,1014.3,1010.5,0.30486793]
[1610379541910,1.998,1014.3,1010.8,9.0]
[1610379542108,4.00959,1010.9,1010.8,11.1612]
[1610379542309,4.00959,1010.9,1010.8,2.1612]
[1610379543109,4.00959,1010.9,1010.3,1.8581]
[1610379543313,4.00959,1010.9,1009.8,1.509]
[1610379543612,4.00959,1010.9,1009.7,9.0]
[1610379543840,2.4321,1011.4,1010.3,9.0]
[1610379544014,1.0189,1011.7,1010.3,41.3396]
[1610379544211,1.0189,1011.7,1011.3,4.00959]
[1610379544413,10.185,1018.4,1011.3,4.00959]
[1610379544613,30.0,1016.6,1011.3,13.00959]
[1610379545012,30.0,1016.6,1011.3,4.00959]
[1610379545213,1.9957,1014.1,1011.3,4.00959]
[1610379545412,1.9957,1014.1,1011.3,13.00959]
[1610379545612,1.959,1014.5,1011.3,4.00959]
[1610379545812,1.9488,1015.3,1011.3,4.00959]
[1610379546213,1.9549,1015.1,1011.3,1.6005]
[1610379546613,1.9549,1015.1,1011.3,10.6005]
[1610379546813,3.405,1015.3,1011.3,10.6005]
[1610379547213,2.96927,1014.9,1011.3,10.6005]
[1610379548214,4.00959,1012.7,1011.3,1.6005]
[1610379548413,5.53959,1012.7,1011.3,1.6005]
[1610379548614,5.53959,1012.7,1011.3,0.58]
[1610379549014,5.53959,1012.7,1011.0,2.2512]
[1610379549216,5.53959,1012.7,1010.3,2.3396]
[1610379549414,5.53959,1012.7,1008.9,0.30520292]
[1610379549614,5.53959,1012.7,1009.3,9.0]
[1610379549814,5.53959,1012.7,1009.3,11.4603]
[1610379550014,5.53959,1012.7,1009.3,2.4603]
[1610379550214,4.00959,1010.3,1010.2,4.00959]
[1610379550415,4.00959,1010.3,1009.3,2.4603]
[1610379550617,4.00959,1010.3,1009.3,11.4603]
[1610379551016,4.00959,1010.3,1009.3,2.4603]